bitfinex/quotes_BTCUSD_20250902
["timestamp","ask_amount","ask_price","bid_price","bid_amount"]
[1756846449802,0.70649093,111510.0,111500.0,0.15764]
[1756846451870,0.70649093,111510.0,111500.0,0.15976]
[1756846452070,0.70649093,111510.0,111500.0,0.16273]
[1756846452338,0.70649093,111510.0,111500.0,0.15976]
[1756846453942,0.70435093,111510.0,111500.0,0.34210219]
[1756846454156,0.11892922,111510.0,111500.0,0.74816779]
[1756846454542,0.29828533,111510.0,111500.0,0.74816779]
[1756846455335,0.29828533,111510.0,111500.0,0.5687956]
[1756846455787,0.29828533,111510.0,111500.0,0.74816779]
[1756846459075,0.30041533,111510.0,111500.0,0.5687156]
[1756846459294,0.30041533,111510.0,111500.0,0.16265]
[1756846459519,0.30041533,111510.0,111500.0,0.5687156]
[1756846461579,0.30041533,111510.0,111500.0,0.74808779]
[1756846462222,0.30041533,111510.0,111500.0,0.5687156]
[1756846462915,0.29828533,111510.0,111500.0,0.74808779]
[1756846463403,0.30041533,111510.0,111500.0,0.74800779]
[1756846465436,0.12105922,111510.0,111500.0,0.74800779]
[1756846465733,0.11892922,111510.0,111500.0,0.74800779]
[1756846467035,0.29828533,111510.0,111500.0,0.18646219]
[1756846467234,0.11892922,111510.0,111500.0,0.74796779]
[1756846471100,0.11892922,111510.0,111500.0,0.74792779]
[1756846471322,0.02701323,111510.0,111500.0,0.74792779]
[1756846471517,4.695e-05,111510.0,111500.0,1.15399339]
[1756846474486,4.695e-05,111510.0,111500.0,0.18646219]
[1756846474639,4.695e-05,111510.0,111500.0,0.74788779]
[1756846475813,4.695e-05,111510.0,111500.0,1.15395339]
[1756846476724,4.695e-05,111510.0,111500.0,0.34182219]
[1756846476916,4.695e-05,111510.0,111500.0,0.74788779]
[1756846478810,4.695e-05,111510.0,111500.0,1.56001899]
[1756846479033,4.695e-05,111510.0,111500.0,1.18091472]
[1756846479250,4.695e-05,111510.0,111500.0,1.20538472]
[1756846479892,4.695e-05,111510.0,111500.0,1.70336631]
[1756846480512,4.695e-05,111510.0,111500.0,2.04336631]
[1756846480743,4.695e-05,111510.0,111500.0,2.06430513]
[1756846483201,4.695e-05,111510.0,111500.0,2.06422513]
[1756846484841,4.695e-05,111510.0,111500.0,3.33242193]
[1756846485044,0.07354631,111540.0,111530.0,0.99145514]
[1756846485370,0.07359318,111540.0,111530.0,1.20985514]
[1756846485613,0.07359318,111540.0,111530.0,1.21516514]
[1756846485824,0.07359318,111540.0,111530.0,1.24211933]
[1756846486234,4.687e-05,111540.0,111530.0,1.24211933]
[1756846487633,4.687e-05,111540.0,111530.0,1.25452745]
[1756846488074,4.687e-05,111540.0,111530.0,1.34644344]
[1756846488995,4.687e-05,111540.0,111530.0,1.34640344]
[1756846489208,4.687e-05,111540.0,111530.0,1.36734226]
[1756846489373,4.687e-05,111540.0,111530.0,1.21218226]
[1756846489580,4.687e-05,111540.0,111530.0,1.36734226]
[1756846489773,4.687e-05,111540.0,111530.0,1.4081546]
[1756846490591,4.687e-05,111540.0,111530.0,1.2529946]
[1756846490791,4.687e-05,111540.0,111530.0,1.4081146]
[1756846491274,4.687e-05,111540.0,111530.0,1.4101146]
[1756846492139,4.687e-05,111540.0,111530.0,1.4111146]
[1756846492578,4.687e-05,111540.0,111530.0,1.4101146]
[1756846493025,4.687e-05,111540.0,111530.0,1.4121146]
[1756846493472,4.687e-05,111540.0,111530.0,1.2569946]
[1756846493918,4.687e-05,111540.0,111530.0,1.4120746]
[1756846497637,4.687e-05,111540.0,111530.0,1.37126226]
[1756846498773,4.687e-05,111540.0,111530.0,2.16732786]
[1756846498977,4.687e-05,111540.0,111530.0,2.19179786]
[1756846499177,4.687e-05,111540.0,111530.0,2.19171786]
[1756846499386,4.687e-05,111540.0,111530.0,1.78565226]
[1756846499596,1e-08,111540.0,111530.0,1.78457608]
[1756846499818,1e-08,111540.0,111530.0,2.24010359]
[1756846500230,1e-08,111540.0,111530.0,2.07957608]
[1756846500435,1e-08,111540.0,111530.0,2.23057608]
[1756846501093,1e-08,111540.0,111530.0,2.23557608]
[1756846501303,1e-08,111540.0,111530.0,2.08057608]
[1756846501509,1e-08,111540.0,111530.0,2.23357608]
[1756846501916,1e-08,111540.0,111530.0,2.23857608]
[1756846502818,0.0002,111570.0,111550.0,0.17929179]
[1756846503086,0.00066869,111570.0,111560.0,0.89487922]
[1756846503543,0.00273869,111570.0,111560.0,0.92182271]
[1756846503723,0.00273869,111570.0,111560.0,0.92397271]
[1756846504378,0.00273869,111570.0,111560.0,0.92497271]
[1756846504988,0.00273869,111570.0,111560.0,0.92597271]
[1756846506857,0.00273869,111570.0,111560.0,0.92593271]
[1756846507252,0.00273869,111570.0,111560.0,0.92909271]
[1756846507882,0.00273869,111570.0,111560.0,0.92593271]
[1756846508099,0.00273869,111570.0,111560.0,0.92909271]
[1756846508294,0.00066869,111570.0,111560.0,0.92909271]
[1756846508503,0.00266869,111570.0,111560.0,0.92905271]
[1756846508698,0.00266869,111570.0,111560.0,1.1982527]
[1756846510873,0.00266869,111570.0,111560.0,1.0433727]
[1756846511077,0.00266869,111570.0,111560.0,1.1982527]
[1756846511281,0.00266869,111570.0,111560.0,1.1982127]
[1756846511723,0.00266869,111570.0,111560.0,1.1950527]
[1756846511954,0.00266869,111570.0,111560.0,1.1982227]
[1756846513440,0.00266869,111570.0,111560.0,1.0433827]
[1756846513676,0.00266869,111570.0,111560.0,1.1982227]
[1756846514287,0.00066869,111570.0,111560.0,1.0433827]
[1756846514520,0.00066869,111570.0,111560.0,1.1982227]
[1756846514724,0.00266869,111570.0,111560.0,1.0380627]
[1756846514925,0.00566869,111570.0,111560.0,0.5406192]
[1756846515133,0.00566869,111570.0,111560.0,0.6954192]
[1756846515340,0.00566869,111570.0,111560.0,1.10094671]
[1756846515750,0.00566869,111570.0,111560.0,1.09994671]
[1756846516265,0.00566869,111570.0,111560.0,0.6954192]
[1756846516468,0.00566869,111570.0,111560.0,1.10094671]
[1756846516772,0.00566869,111570.0,111560.0,1.09994671]
[1756846517114,0.00566869,111570.0,111560.0,1.10194671]
[1756846517628,0.00066869,111570.0,111560.0,1.1989927]
[1756846517944,0.00066869,111570.0,111560.0,0.79346519]
[1756846518291,0.00066869,111570.0,111560.0,1.1989927]
[1756846519628,0.00266869,111570.0,111560.0,1.1989927]
[1756846519841,0.00066869,111570.0,111560.0,1.21993152]
[1756846520011,0.00066869,111570.0,111560.0,1.26061981]
[1756846522571,0.00066869,111570.0,111560.0,1.10581981]
[1756846522775,0.00066869,111570.0,111560.0,1.26057981]
[1756846524406,0.00066869,111570.0,111560.0,1.10581981]
[1756846524613,0.00066869,111570.0,111560.0,1.26053981]
[1756846525417,0.00066869,111570.0,111560.0,2.00606732]
[1756846525634,0.00066869,111570.0,111560.0,1.60053981]
[1756846527132,0.00066869,111570.0,111560.0,1.44581981]
[1756846527314,0.00066869,111570.0,111560.0,1.60053981]
[1756846527543,0.00066869,111570.0,111560.0,1.60049981]
[1756846528451,0.00266869,111570.0,111560.0,1.44581981]
[1756846528732,0.00266869,111570.0,111560.0,1.60049981]
[1756846528946,0.00066869,111570.0,111560.0,1.60049981]
[1756846531600,0.00066869,111570.0,111560.0,1.44581981]
[1756846531793,0.00066869,111570.0,111560.0,1.60045981]
[1756846532745,0.00011976,111570.0,111560.0,1.55977152]
[1756846535693,0.00011976,111570.0,111560.0,1.40513152]
[1756846536115,0.00011976,111570.0,111560.0,1.55973152]
[1756846536301,0.00211976,111570.0,111560.0,1.40513152]
[1756846536523,0.00211976,111570.0,111560.0,1.55973152]
[1756846536777,0.00011976,111570.0,111560.0,1.55973152]
[1756846539226,0.00211976,111570.0,111560.0,0.8816192]
[1756846539434,0.18462941,111570.0,111560.0,0.27241921]
[1756846539634,0.00536976,111570.0,111560.0,0.40003572]
[1756846540502,0.00211976,111570.0,111560.0,0.80556323]
[1756846540901,0.00211976,111570.0,111560.0,0.80755323]
[1756846541174,0.00211976,111570.0,111560.0,0.81065323]
[1756846541579,0.00211976,111570.0,111560.0,0.90256922]
[1756846541782,0.00011976,111570.0,111560.0,0.90256922]
[1756846542490,0.00011976,111570.0,111560.0,0.92350804]
[1756846543395,0.00011976,111570.0,111560.0,1.19270803]
[1756846546500,0.00011976,111570.0,111560.0,1.53270803]
[1756846547184,0.00011976,111570.0,111560.0,1.93823554]
[1756846547583,0.00011976,111570.0,111560.0,1.98823554]
[1756846547994,1.652e-05,111570.0,111560.0,1.98823554]
[1756846548504,1.652e-05,111570.0,111560.0,2.01146554]
[1756846548655,1.652e-05,111570.0,111560.0,2.00946554]
[1756846549255,1.652e-05,111570.0,111560.0,2.00846554]
[1756846549516,1.652e-05,111570.0,111560.0,2.01446554]
[1756846549714,1.652e-05,111570.0,111560.0,2.04140402]
[1756846550291,1.652e-05,111570.0,111560.0,2.03840402]
[1756846550497,1.652e-05,111570.0,111560.0,2.04340402]
[1756846550697,1.652e-05,111570.0,111560.0,2.04040402]
[1756846551145,1.652e-05,111570.0,111560.0,2.04440402]
[1756846551631,1.652e-05,111570.0,111560.0,2.04428402]
[1756846552396,1.652e-05,111570.0,111560.0,1.77508403]
[1756846553647,1.652e-05,111570.0,111560.0,1.62064403]
[1756846553777,1.652e-05,111570.0,111560.0,1.75185403]
[1756846555075,1.652e-05,111570.0,111560.0,1.75181403]
[1756846555270,1.652e-05,111570.0,111560.0,1.70181403]
[1756846555495,1.652e-05,111570.0,111560.0,1.75181403]
[1756846556097,1.652e-05,111570.0,111560.0,2.15181403]
[1756846557375,1.652e-05,111570.0,111560.0,2.26661403]
[1756846557569,1.652e-05,111570.0,111560.0,2.02101403]
[1756846558726,0.00325,111590.0,111580.0,0.17924359]
[1756846558932,0.07374631,111600.0,111590.0,0.17922752]
[1756846559146,0.07374631,111600.0,111590.0,0.33517546]
[1756846559350,0.07374631,111600.0,111590.0,0.83103102]
[1756846559351,0.0022,111600.0,111590.0,0.83103102]
[1756846559670,0.0022,111600.0,111590.0,0.83302102]
[1756846559876,0.0022,111600.0,111590.0,0.83612102]
[1756846560081,0.0022,111600.0,111590.0,0.83712102]
[1756846560277,0.0022,111600.0,111590.0,0.87256901]
[1756846560522,0.00545,111600.0,111590.0,0.3106915]
[1756846560801,0.00545,111600.0,111590.0,0.45343996]
[1756846560999,0.00545,111600.0,111590.0,0.45443996]
[1756846561481,0.00545,111600.0,111590.0,0.33558752]
[1756846562160,0.00545,111600.0,111590.0,0.33554752]
[1756846564047,0.18466146,111600.0,111590.0,0.33554752]
[1756846564279,0.00545,111600.0,111590.0,0.33554752]
[1756846564920,0.00545,111600.0,111590.0,0.74090471]
[1756846565369,0.00545,111600.0,111590.0,0.33554752]
[1756846565582,0.00545,111600.0,111590.0,0.74090471]
[1756846571413,0.0022,111600.0,111590.0,0.74090471]
[1756846574548,0.0022,111600.0,111590.0,0.33554752]
[1756846574724,0.0022,111600.0,111590.0,0.74090471]
[1756846575489,0.0022,111600.0,111590.0,0.37508643]
[1756846575700,0.0022,111600.0,111590.0,0.78044362]
[1756846577209,0.0022,111600.0,111590.0,0.22076643]
[1756846577419,0.0022,111600.0,111590.0,0.78032362]
[1756846577875,0.0022,111600.0,111590.0,0.62612362]
[1756846578007,0.00536,111600.0,111590.0,0.78028362]
[1756846578360,0.0022,111600.0,111590.0,0.78028362]
[1756846579183,0.0022,111600.0,111590.0,0.78232362]
[1756846582136,0.0022,111600.0,111590.0,0.78556362]
[1756846582344,0.0022,111600.0,111590.0,0.38020643]
[1756846582551,0.0022,111600.0,111590.0,0.78556362]
[1756846582779,0.00223,111600.0,111590.0,0.78556362]
[1756846583294,0.0002,111600.0,111590.0,0.78556362]
[1756846584558,0.0002,111600.0,111590.0,0.38020643]
[1756846584966,0.0002,111600.0,111590.0,0.78556362]
[1756846588710,0.0002,111600.0,111590.0,0.38020643]
[1756846588917,0.0002,111600.0,111590.0,0.78556362]
[1756846591653,0.0002,111600.0,111590.0,0.38020643]
[1756846591850,0.0002,111600.0,111590.0,0.78556362]
[1756846593023,0.0002,111600.0,111590.0,0.38020643]
[1756846593326,0.0002,111600.0,111590.0,0.78556362]
[1756846594373,0.0002,111600.0,111590.0,0.22604643]
[1756846594585,0.00223,111600.0,111590.0,0.78540362]
[1756846596171,0.0002,111600.0,111590.0,0.78540362]
[1756846596372,0.00223,111600.0,111590.0,0.78540362]
[1756846596880,0.0002,111600.0,111590.0,0.78540362]
[1756846597496,0.00223,111600.0,111590.0,0.38004643]
[1756846597706,0.0002,111600.0,111590.0,0.78540362]
[1756846597883,0.0002,111600.0,111590.0,0.63140362]
[1756846598088,0.0002,111600.0,111590.0,0.78540362]
[1756846606742,0.0002,111600.0,111590.0,1.05460362]
[1756846606945,0.0002,111600.0,111590.0,0.64924643]
[1756846607171,0.0002,111600.0,111590.0,1.05460362]
[1756846609329,0.0002,111600.0,111590.0,1.14651961]
[1756846612641,0.0002,111600.0,111590.0,0.87731961]
[1756846613711,0.0002,111600.0,111590.0,0.72331961]
[1756846613849,0.0002,111600.0,111590.0,0.87715961]
[1756846614670,0.00222,111600.0,111590.0,0.62816362]
[1756846614893,0.00222,111600.0,111590.0,0.77996362]
[1756846615217,0.00222,111600.0,111590.0,0.78206362]
[1756846615418,0.00222,111600.0,111590.0,0.78525362]
[1756846615572,0.0002,111600.0,111590.0,0.78525362]
[1756846615776,0.00222,111600.0,111590.0,0.62822362]
[1756846616143,0.00536,111600.0,111590.0,0.77996362]
[1756846616350,0.00222,111600.0,111590.0,0.77996362]
[1756846617019,0.00222,111600.0,111590.0,0.78206362]
[1756846617991,0.00536,111600.0,111590.0,0.37460643]
[1756846618612,0.00222,111600.0,111590.0,0.37460643]
[1756846618771,0.00536,111600.0,111590.0,0.37460643]
[1756846618973,0.00222,111600.0,111590.0,0.37460643]
[1756846620288,0.00222,111600.0,111590.0,0.37670643]
[1756846620514,0.00536,111600.0,111590.0,0.37460643]
[1756846621059,0.00222,111600.0,111590.0,0.37460643]
[1756846622432,0.00222,111600.0,111590.0,0.37670643]
[1756846624303,0.00222,111600.0,111590.0,0.37989643]
[1756846625824,0.00536,111600.0,111590.0,0.22076643]
[1756846626019,0.00536,111600.0,111590.0,0.37452643]
[1756846626234,0.00222,111600.0,111590.0,0.37662643]
[1756846626443,0.00222,111600.0,111590.0,0.37452643]
[1756846627800,0.00222,111600.0,111590.0,0.22076643]
[1756846628021,0.58994277,111600.0,111590.0,0.18122752]
[1756846628241,0.61688396,111600.0,111590.0,0.33494752]
[1756846628467,0.21151265,111600.0,111590.0,0.33494752]
[1756846628675,0.21151265,111600.0,111590.0,0.18122752]
[1756846628902,0.61688396,111600.0,111590.0,0.18122752]
[1756846629104,0.61688396,111600.0,111590.0,0.33494752]
[1756846629727,0.61688396,111600.0,111590.0,0.33394752]
[1756846630135,0.61688396,111600.0,111590.0,0.33294752]
[1756846630342,0.64783752,111600.0,111590.0,0.33294752]
[1756846630529,0.64783752,111600.0,111590.0,0.15372]
[1756846630740,0.17922752,111590.0,111580.0,0.24253077]
[1756846630939,0.64469752,111600.0,111580.0,0.39621077]
[1756846631145,0.00518,111590.0,111580.0,0.39621077]
[1756846631368,0.21415248,111590.0,111580.0,0.39621077]
[1756846631573,0.21135205,111590.0,111580.0,0.39621077]
[1756846632609,0.20815205,111590.0,111580.0,0.39721077]
[1756846632980,0.20815205,111590.0,111580.0,0.39821077]
[1756846633355,0.21923733,111590.0,111580.0,0.39821077]
[1756846634752,0.20815205,111590.0,111580.0,0.39821077]
[1756846635857,0.20815205,111590.0,111580.0,0.40035077]
[1756846636338,0.20815205,111590.0,111580.0,0.15580718]
[1756846636339,0.61672336,111590.0,111580.0,0.15580718]
[1756846636680,0.64767692,111590.0,111580.0,0.15580718]
[1756846637314,0.64767692,111590.0,111580.0,0.15480718]
[1756846637514,0.61672336,111590.0,111580.0,0.15480718]
[1756846637941,0.61672336,111590.0,111580.0,0.15380718]
[1756846640066,0.43749584,111590.0,111580.0,0.15380718]
[1756846640481,0.61672336,111590.0,111580.0,0.15380718]
[1756846641531,0.61352336,111590.0,111580.0,0.15380718]
[1756846642776,0.61672336,111590.0,111580.0,0.15380718]
[1756846643307,0.61672336,111590.0,111580.0,0.33305077]
[1756846643882,0.61672336,111590.0,111580.0,0.15380718]
[1756846645708,0.20815205,111590.0,111580.0,0.33305077]
[1756846645930,0.61352336,111590.0,111580.0,0.15380718]
[1756846647574,0.20815205,111590.0,111580.0,0.15594718]
[1756846647804,0.61352336,111590.0,111580.0,0.33519077]
[1756846648021,0.20815205,111590.0,111580.0,0.33519077]
[1756846648239,0.61352336,111590.0,111580.0,0.33519077]
[1756846649416,0.61352336,111590.0,111580.0,0.15594718]
[1756846649639,0.61352336,111590.0,111580.0,0.33519077]
[1756846650107,0.61352336,111590.0,111580.0,0.33305077]
[1756846650686,0.61352336,111590.0,111580.0,0.15594718]
[1756846651083,0.61352336,111590.0,111580.0,0.00012718]
[1756846651298,0.61352336,111590.0,111580.0,0.15368718]
[1756846652106,0.61672336,111590.0,111580.0,0.00012718]
[1756846653240,0.61352336,111590.0,111580.0,0.00012718]
[1756846659914,0.61352336,111590.0,111580.0,0.17937077]
[1756846660799,0.61352336,111590.0,111580.0,0.18459077]
[1756846660800,0.20815205,111590.0,111580.0,0.18459077]
[1756846661114,0.61352336,111590.0,111580.0,0.18459077]
[1756846661926,0.61352336,111590.0,111580.0,0.18142077]
[1756846662555,0.61352336,111590.0,111580.0,0.00012718]
[1756846662747,0.61352336,111590.0,111580.0,0.00534718]
[1756846662881,0.61352336,111590.0,111580.0,0.18142077]
[1756846663688,0.61352336,111590.0,111580.0,0.00217718]
[1756846664308,0.61352336,111590.0,111580.0,0.18142077]
[1756846665325,0.61352336,111590.0,111580.0,0.17937077]
[1756846665523,0.61352336,111590.0,111580.0,0.18459077]
[1756846665856,0.61154336,111590.0,111580.0,0.18459077]
[1756846666499,0.20617205,111590.0,111580.0,0.18459077]
[1756846670367,0.61154336,111590.0,111580.0,0.18459077]
[1756846672059,0.61369336,111590.0,111580.0,0.18459077]
[1756846672626,0.20832205,111590.0,111580.0,0.00217718]
[1756846672823,0.61369336,111590.0,111580.0,0.00012718]
[1756846673049,0.61666336,111590.0,111580.0,0.00012718]
[1756846673379,0.61369336,111590.0,111580.0,0.18142077]
[1756846673913,0.61369336,111590.0,111580.0,0.18459077]
[1756846675047,0.20832205,111590.0,111580.0,0.18459077]
[1756846675407,0.61369336,111590.0,111580.0,0.18459077]
[1756846678258,0.61369336,111590.0,111580.0,0.18142077]
[1756846680193,0.20832205,111590.0,111580.0,0.18142077]
[1756846680495,0.61369336,111590.0,111580.0,0.18142077]
[1756846681908,0.61369336,111590.0,111580.0,0.00217718]
[1756846682108,0.61369336,111590.0,111580.0,0.15356718]
[1756846682363,0.61369336,111590.0,111580.0,0.33281077]
[1756846682542,0.20832205,111590.0,111580.0,0.33281077]
[1756846682746,0.20832205,111590.0,111580.0,0.15356718]
[1756846682944,0.20832205,111590.0,111580.0,0.00012718]
[1756846683250,0.20832205,111590.0,111580.0,0.15356718]
[1756846683557,0.61381417,111590.0,111580.0,0.15356718]
[1756846685019,0.61381417,111590.0,111580.0,0.33281077]
[1756846687784,0.20617205,111590.0,111580.0,0.33803077]
[1756846688232,0.61166417,111590.0,111580.0,0.33803077]
[1756846690298,0.61374417,111590.0,111580.0,0.18459077]
[1756846690496,0.61374417,111590.0,111580.0,0.33277077]
[1756846690628,0.61669417,111590.0,111580.0,0.00012718]
[1756846690848,0.61669417,111590.0,111580.0,0.15352718]
[1756846691706,0.61669417,111590.0,111580.0,0.00012718]
[1756846691838,0.61769417,111590.0,111580.0,0.15352718]
[1756846692331,0.61869417,111590.0,111580.0,0.15352718]
[1756846692518,0.61769417,111590.0,111580.0,0.33277077]
[1756846692745,0.61769417,111590.0,111580.0,0.15348718]
[1756846692941,0.61869417,111590.0,111580.0,0.15348718]
[1756846694063,0.61869417,111590.0,111580.0,0.33273077]
[1756846694766,0.61869417,111590.0,111580.0,0.15348718]
[1756846695343,0.61869417,111590.0,111580.0,0.33273077]
[1756846695593,0.61869417,111590.0,111580.0,0.15348718]
[1756846696194,0.61574417,111590.0,111580.0,0.15348718]
[1756846696439,0.20817205,111590.0,111580.0,0.33786077]
[1756846696653,0.02894453,111590.0,111580.0,1.17171501]
[1756846696886,0.002,111590.0,111580.0,2.03006194]
[1756846697138,0.002,111590.0,111580.0,2.05700212]
[1756846697353,0.001,111590.0,111580.0,1.47721118]
[1756846697605,0.0045921,111590.0,111580.0,0.18450077]
[1756846697832,0.0045921,111590.0,111580.0,0.33786077]
[1756846698503,0.0045921,111590.0,111580.0,0.33886077]
[1756846698705,0.0035921,111590.0,111580.0,0.18550077]
[1756846698889,0.0035921,111590.0,111580.0,0.33882077]
[1756846700138,0.0035921,111590.0,111580.0,0.33782077]
[1756846701043,0.18489962,111590.0,111580.0,0.00213718]
[1756846701266,0.59039174,111590.0,111580.0,0.33470077]
[1756846701714,0.59039174,111590.0,111580.0,0.33782077]
[1756846702137,0.59039174,111590.0,111580.0,0.33470077]
[1756846702353,0.59039174,111590.0,111580.0,0.33782077]
[1756846703769,0.0035921,111590.0,111580.0,0.74331289]
[1756846704280,0.0035921,111590.0,111580.0,0.33782077]
[1756846704491,0.0035921,111590.0,111580.0,0.74331289]
[1756846705260,0.0035921,111590.0,111580.0,1.14880501]
[1756846706721,0.0035921,111590.0,111580.0,0.74331289]
[1756846710070,0.0035921,111590.0,111580.0,1.14880501]
[1756846712462,0.59334174,111590.0,111580.0,0.15336718]
[1756846713513,0.18784962,111590.0,111580.0,0.15336718]
[1756846713731,0.59334174,111590.0,111580.0,0.15336718]
[1756846714739,0.59334174,111590.0,111580.0,0.00012718]
[1756846714940,0.59334174,111590.0,111580.0,0.15336718]
[1756846717473,0.59334174,111590.0,111580.0,0.00012718]
[1756846717681,0.59334174,111590.0,111580.0,0.15332718]
[1756846722666,0.59039174,111590.0,111580.0,0.15332718]
[1756846723603,0.59039174,111590.0,111580.0,0.00012718]
[1756846723803,0.59039174,111590.0,111580.0,0.15328718]
[1756846723997,0.18489962,111590.0,111580.0,0.15328718]
[1756846724192,0.59039174,111590.0,111580.0,0.15328718]
[1756846724748,0.59039174,111590.0,111580.0,0.00012718]
[1756846724934,0.59039174,111590.0,111580.0,0.15328718]
[1756846725720,0.59039174,111590.0,111580.0,0.00012718]
[1756846726136,0.59039174,111590.0,111580.0,0.15328718]
[1756846728280,0.18489962,111590.0,111580.0,0.33762077]
[1756846728557,0.59039174,111590.0,111580.0,0.33762077]
[1756846728964,0.18489962,111590.0,111580.0,0.33762077]
[1756846729186,0.59039174,111590.0,111580.0,0.33762077]
[1756846729405,0.59039174,111590.0,111580.0,0.15837718]
[1756846729656,0.59039174,111590.0,111580.0,0.15523718]
[1756846730760,0.18489962,111590.0,111580.0,0.00012718]
[1756846731010,0.59039174,111590.0,111580.0,0.33758077]
[1756846731460,0.59039174,111590.0,111580.0,0.15833718]
[1756846731677,0.59039174,111590.0,111580.0,0.16343847]
[1756846731879,0.59039174,111590.0,111580.0,0.15833718]
[1756846733760,0.18489962,111590.0,111580.0,0.33758077]
[1756846734213,0.59039174,111590.0,111580.0,0.33758077]
[1756846738135,0.59039174,111590.0,111580.0,0.15825718]
[1756846738746,0.59039174,111590.0,111580.0,0.15316718]
[1756846739095,0.59039174,111590.0,111580.0,0.15511718]
[1756846739503,0.59139174,111590.0,111580.0,0.15511718]
[1756846739686,0.59139174,111590.0,111580.0,0.15316718]
[1756846740261,0.18589962,111590.0,111580.0,0.33750077]
[1756846740488,0.59039174,111590.0,111580.0,0.33750077]
[1756846740807,0.59039174,111590.0,111580.0,0.00521718]
[1756846740974,0.59039174,111590.0,111580.0,0.15825718]
[1756846741383,0.59039174,111590.0,111580.0,0.15511718]
[1756846741580,0.59039174,111590.0,111580.0,0.00207718]
[1756846741812,0.59039174,111590.0,111580.0,0.15511718]
[1756846742288,0.59039174,111590.0,111580.0,0.00207718]
[1756846742472,0.59039174,111590.0,111580.0,0.15511718]
[1756846743108,0.18489962,111590.0,111580.0,0.33436077]
[1756846743327,0.59039174,111590.0,111580.0,0.33750077]
[1756846744155,0.59239174,111590.0,111580.0,0.33750077]
[1756846744635,0.18589962,111590.0,111580.0,0.33750077]
[1756846744847,0.59139174,111590.0,111580.0,0.33750077]
[1756846745161,0.59239174,111590.0,111580.0,0.18446077]
[1756846745374,0.59239174,111590.0,111580.0,0.33432077]
[1756846745583,0.18689962,111590.0,111580.0,0.33432077]
[1756846745992,0.59236708,111590.0,111580.0,0.33432077]
[1756846747095,0.59236708,111590.0,111580.0,0.18132077]
[1756846747276,0.59236708,111590.0,111580.0,0.33432077]
[1756846747600,0.18689962,111590.0,111580.0,0.33432077]
[1756846748521,0.18689962,111590.0,111580.0,0.00207718]
[1756846748659,0.18689962,111590.0,111580.0,0.33432077]
[1756846750104,0.18689962,111590.0,111580.0,0.33730077]
[1756846752468,0.18689962,111590.0,111580.0,0.18430077]
[1756846752671,0.18689962,111590.0,111580.0,0.15801718]
[1756846752871,0.18999962,111590.0,111580.0,0.00012718]
[1756846753023,0.18999962,111590.0,111580.0,0.15308718]
[1756846753239,0.18689962,111590.0,111580.0,0.15308718]
[1756846753653,0.18689962,111590.0,111580.0,0.33741077]
[1756846753869,0.18689962,111590.0,111580.0,0.00012718]
[1756846754014,0.18689962,111590.0,111580.0,0.15308718]
[1756846754226,0.18689962,111590.0,111580.0,0.00012718]
[1756846754446,0.18689962,111590.0,111580.0,0.15308718]
[1756846754982,0.18689962,111590.0,111580.0,0.33443077]
[1756846755843,0.59236708,111590.0,111580.0,0.33443077]
[1756846758683,0.59236708,111590.0,111580.0,0.15518718]
[1756846759092,0.59236708,111590.0,111580.0,0.33443077]
[1756846761950,0.59236708,111590.0,111580.0,0.15518718]
[1756846762123,0.59236708,111590.0,111580.0,0.33443077]
[1756846762330,0.59236708,111590.0,111580.0,0.15518718]
[1756846762670,0.18689962,111590.0,111580.0,0.33443077]
[1756846762830,0.18481962,111590.0,111580.0,0.33741077]
[1756846765938,0.18692962,111590.0,111580.0,0.33741077]
[1756846766147,0.18481962,111590.0,111580.0,0.33741077]
[1756846767919,0.18692962,111590.0,111580.0,0.33741077]
[1756846768092,0.18692962,111590.0,111580.0,0.15816718]
[1756846768259,0.18692962,111590.0,111580.0,0.33741077]
[1756846768459,0.28692962,111590.0,111580.0,0.33741077]
[1756846770369,0.28692962,111590.0,111580.0,0.15296718]
[1756846770569,0.69239708,111590.0,111580.0,0.15506718]
[1756846771725,0.69239708,111590.0,111580.0,0.33431077]
[1756846771900,0.69239708,111590.0,111580.0,0.33221077]
[1756846772538,0.69239708,111590.0,111580.0,0.15296718]
[1756846773738,0.69239708,111590.0,111580.0,0.33221077]
[1756846774952,0.28692962,111590.0,111580.0,0.33221077]
[1756846775300,0.28692962,111590.0,111580.0,0.33431077]
[1756846777401,0.69239708,111590.0,111580.0,0.33431077]
[1756846777856,0.69239708,111590.0,111580.0,0.33729077]
[1756846780439,0.1055921,111590.0,111580.0,0.33729077]
[1756846780667,0.102,111590.0,111580.0,0.74275823]
[1756846781599,0.1,111590.0,111580.0,0.74275823]
[1756846782082,0.1,111590.0,111580.0,1.19735422]
[1756846782306,0.101,111590.0,111580.0,1.22429415]
[1756846782794,0.1,111590.0,111580.0,1.22429415]
[1756846783516,0.101,111590.0,111580.0,1.22429415]
[1756846783734,0.1,111590.0,111580.0,1.22417415]
[1756846784173,0.101,111590.0,111580.0,1.22517415]
[1756846784574,0.101,111590.0,111580.0,1.22417415]
[1756846784785,0.101,111590.0,111580.0,1.07445415]
[1756846785002,0.1,111590.0,111580.0,1.22617415]
[1756846785216,0.1,111590.0,111580.0,1.22917415]
[1756846785592,0.1,111590.0,111580.0,1.22617415]
[1756846785800,0.1,111590.0,111580.0,1.22717415]
[1756846786410,0.1,111590.0,111580.0,1.22517415]
[1756846786747,0.1,111590.0,111580.0,1.22617415]
[1756846787071,0.1,111590.0,111580.0,1.22517415]
[1756846787248,0.1,111590.0,111580.0,1.22417415]
[1756846787479,0.1,111590.0,111580.0,1.22717415]
[1756846787613,0.1,111590.0,111580.0,1.22917415]
[1756846788117,0.1,111590.0,111580.0,1.22913415]
[1756846788326,0.1,111590.0,111580.0,0.80098669]
[1756846788529,0.1,111590.0,111580.0,1.20645415]
[1756846789479,0.1,111590.0,111580.0,1.20445415]
[1756846790337,0.1,111590.0,111580.0,1.04977415]
[1756846790556,0.10307,111590.0,111580.0,0.61736676]
[1756846790798,0.10207,111590.0,111580.0,1.17447422]
[1756846791350,0.1,111590.0,111580.0,1.17447422]
[1756846797672,0.1,111590.0,111580.0,1.17440119]
[1756846800613,0.1,111590.0,111580.0,0.9298452]
[1756846800813,0.1,111590.0,111580.0,1.0824052]
[1756846802164,0.101,111590.0,111580.0,1.0824052]
[1756846802857,0.101,111590.0,111580.0,0.67693774]
[1756846803069,0.101,111590.0,111580.0,1.0824052]
[1756846803319,0.1,111590.0,111580.0,1.0824052]
[1756846805138,0.10207,111590.0,111580.0,0.9300552]
[1756846805302,0.10207,111590.0,111580.0,0.67391774]
[1756846805502,0.10207,111590.0,111580.0,0.67181774]
[1756846805702,0.10207,111590.0,111580.0,1.0772211]
[1756846805935,0.10207,111590.0,111580.0,0.18133774]
[1756846806187,0.28443752,111590.0,111580.0,0.17929774]
[1756846806414,0.51061336,111590.0,111580.0,0.33181774]
[1756846806614,0.28443752,111590.0,111580.0,0.33181774]
[1756846806741,0.68984088,111590.0,111580.0,0.33181774]
[1756846807561,0.69084088,111590.0,111580.0,0.33181774]